fUST/lending_fUST_20260623
["ID","MTS","AMOUNT","RATE_DAILY","PERIOD"]
[426138657,1782162642000,-300.35494551,0.0002,2]
[426138609,1782162642000,-163.72,0.0001971,2]
[426138653,1782162642000,-121481.52804002,0.0002,2]
[426138601,1782162642000,-172.118108,0.000196,2]
[426138603,1782162642000,-151.0,0.000196,2]
[426138611,1782162642000,-162.9,0.00019721,2]
[426138615,1782162642000,-1250.17,0.00019726,2]
[426138613,1782162642000,-1262.52,0.00019726,2]
[426138616,1782162642000,-8653.05986937,0.00019752,2]
[426138620,1782162642000,-165.10000001,0.000198,10]
[426138618,1782162642000,-245.13962161,0.00019797,2]
[426138624,1782162642000,-202.5,0.00019845,2]
[426138622,1782162642000,-500.0,0.00019845,2]
[426138633,1782162642000,-338.37014334,0.0001991,2]
[426138635,1782162642000,-200.84402606,0.0001991,2]
[426138605,1782162642000,-250.79097501,0.00019637,2]
[426138631,1782162642000,-196.85540125,0.00019905,2]
[426138626,1782162642000,-166.94,0.00019867,2]
[426138651,1782162642000,-468.704996,0.00019963,2]
[426138649,1782162642000,-661.617156,0.00019963,2]
[426138647,1782162642000,-387.265741,0.00019963,2]
[426138645,1782162642000,-215.93953315,0.00019924,2]
[426138659,1782162642000,-150.0,0.0002,2]
[426138641,1782162642000,-235.41220442,0.00019924,2]
[426138627,1782162642000,-166.88206897,0.00019894,2]
[426138637,1782162642000,-617.20163475,0.0001991,2]
[426138629,1782162642000,-168.3888056,0.00019894,2]
[426138639,1782162642000,-273.38445717,0.00019912,2]
[426138661,1782162642000,-1262.52,0.0002,2]
[426138643,1782162642000,-167.32775292,0.00019924,2]
[426138778,1782162643000,-381.38062526,0.00020269,2]
[426138789,1782162643000,-337.29574283,0.00020269,2]
[426138770,1782162643000,-1005.0,0.00020264,2]
[426138782,1782162643000,-470.82440885,0.00020269,2]
[426138787,1782162643000,-334.65550583,0.00020269,2]
[426138785,1782162643000,-393.55716993,0.00020269,2]
[426138783,1782162643000,-362.29433056,0.00020269,2]
[426138790,1782162643000,-319.13611164,0.00020269,2]
[426138791,1782162643000,-374.58034077,0.00020269,2]
[426138780,1782162643000,-340.98319319,0.00020269,2]
[426138798,1782162643000,-1000.0,0.0002027,2]
[426138792,1782162643000,-431.8790663,0.00020269,2]
[426138793,1782162643000,-381.89605942,0.00020269,2]
[426138795,1782162643000,-368.46707068,0.00020269,2]
[426138796,1782162643000,-401.68805212,0.00020269,2]
[426138797,1782162643000,-346.94411079,0.00020269,2]
[426138799,1782162643000,-1000.0,0.0002027,2]
[426138802,1782162643000,-2486.58810768,0.000203,2]
[426138801,1782162643000,-1250.17,0.00020273,2]
[426138800,1782162643000,-1262.52,0.00020273,2]
[426138776,1782162643000,-334.76517837,0.00020269,2]
[426138808,1782162643000,-150.0,0.00020413,2]
[426138794,1782162643000,-336.0743809,0.00020269,2]
[426138772,1782162643000,-1005.0,0.00020264,2]
[426138739,1782162643000,-1005.0,0.00020264,2]
[426138766,1782162643000,-1005.0,0.00020264,2]
[426138803,1782162643000,-223.75479837,0.000203,2]
[426138721,1782162643000,-417.15472785,0.00020256,2]
[426138722,1782162643000,-160.0,0.00020256,2]
[426138724,1782162643000,-166.0,0.00020264,2]
[426138719,1782162643000,-361.42920661,0.00020255,2]
[426138726,1782162643000,-1005.0,0.00020264,2]
[426138736,1782162643000,-1005.0,0.00020264,2]
[426138728,1782162643000,-1005.0,0.00020264,2]
[426138730,1782162643000,-1005.0,0.00020264,2]
[426138734,1782162643000,-1005.0,0.00020264,2]
[426138732,1782162643000,-1005.0,0.00020264,2]
[426138774,1782162643000,-1005.0,0.00020264,2]
[426138741,1782162643000,-1005.0,0.00020264,2]
[426138743,1782162643000,-1005.0,0.00020264,2]
[426138747,1782162643000,-422.68978639,0.00020264,2]
[426138762,1782162643000,-1005.0,0.00020264,2]
[426138750,1782162643000,-582.31021361,0.00020264,2]
[426138760,1782162643000,-1005.0,0.00020264,2]
[426138752,1782162643000,-1005.0,0.00020264,2]
[426138756,1782162643000,-1005.0,0.00020264,2]
[426138754,1782162643000,-1005.0,0.00020264,2]
[426138758,1782162643000,-1005.0,0.00020264,2]
[426138764,1782162643000,-1005.0,0.00020264,2]
[426138768,1782162643000,-1005.0,0.00020264,2]
[426138745,1782162643000,-1005.0,0.00020264,2]
[426138804,1782162643000,-175.12445426,0.000203,2]
[426138846,1782162643000,-287.40520363,0.00020588,2]
[426138806,1782162643000,-221.722,0.00020413,2]
[426138864,1782162643000,-223.75479837,0.000207,2]
[426138866,1782162643000,-1262.52,0.00020821,2]
[426138867,1782162643000,-48.91399399,0.00020821,2]
[426138871,1782162643000,-160.0,0.00020834,2]
[426138869,1782162643000,-1201.25600601,0.00020821,2]
[426138807,1782162643000,-150.0,0.00020413,2]
[426138876,1782162643000,-214.266647,0.0002084,2]
[426138878,1782162643000,-2486.58810768,0.000209,2]
[426138875,1782162643000,-224.52076,0.00020834,2]
[426138886,1782162643000,-1782.70808147,0.00021,2]
[426138880,1782162643000,-223.75479837,0.000209,2]
[426138884,1782162643000,-335.04379955,0.00020999,7]
[426138882,1782162643000,-292.598737,0.00020944,2]
[426138889,1782162643000,-210.0,0.00021,14]
[426138891,1782162643000,-150.0,0.00021,2]
[426138888,1782162643000,-1217.29191853,0.00021,2]
[426138895,1782162643000,-3000.0,0.0002102,2]
[426138893,1782162643000,-3000.0,0.0002101,2]
[426138896,1782162643000,-3000.0,0.0002103,2]
[426138898,1782162643000,-3000.0,0.0002104,2]
[426138902,1782162643000,-3000.0,0.0002106,2]
[426138904,1782162643000,-620.65051427,0.0002107,2]
[426138900,1782162643000,-3000.0,0.0002105,2]
[426138860,1782162643000,-1000.0,0.0002,2]
[426138862,1782162643000,-1965.03120764,0.000207,2]
[426138873,1782162643000,-192.26038,0.00020834,2]
[426138854,1782162643000,-521.55690004,0.000207,2]
[426138805,1782162643000,-797.0,0.000203,2]
[426138810,1782162643000,-458.507797,0.00020413,2]
[426138812,1782162643000,-1005.0,0.00020419,2]
[426138813,1782162643000,-1005.0,0.00020419,2]
[426138858,1782162643000,-1000.0,0.000195,2]
[426138814,1782162643000,-1005.0,0.00020419,2]
[426138811,1782162643000,-499.492203,0.00020413,2]
[426138815,1782162643000,-1005.0,0.00020419,2]
[426138818,1782162643000,-160.0,0.00020499,2]
[426138817,1782162643000,-1005.0,0.00020419,2]
[426138816,1782162643000,-1005.0,0.00020419,2]
[426138809,1782162643000,-150.0,0.00020413,2]
[426138821,1782162643000,-2053.03642511,0.000205,2]
[426138819,1782162643000,-160.0,0.00020499,2]
[426138851,1782162643000,-164.271097,0.00020669,2]
[426138853,1782162643000,-195.065824,0.00020669,2]
[426138845,1782162643000,-225.93158433,0.000204,2]
[426138837,1782162643000,-153.84611527,0.00020588,2]
[426138849,1782162643000,-306.209391,0.00020629,2]
[426138833,1782162643000,-1262.52,0.00020547,2]
[426138831,1782162643000,-175.12445426,0.000205,2]
[426138820,1782162643000,-433.55168257,0.000205,2]
[426138823,1782162643000,-223.75479837,0.000205,2]
[426138835,1782162643000,-1250.17,0.00020547,2]
[426139213,1782162646000,-3000.0,0.0002113,2]
[426139205,1782162646000,-223.75479837,0.000211,2]
[426139209,1782162646000,-3000.0,0.0002111,2]
[426139207,1782162646000,-3000.0,0.000211,2]
[426139203,1782162646000,-2486.58810768,0.000211,2]
[426139201,1782162646000,-1250.17,0.00021095,2]
[426139190,1782162646000,-2379.34948573,0.0002107,2]
[426139197,1782162646000,-13673.437484,0.0002109,2]
[426139199,1782162646000,-1262.52,0.00021095,2]
[426139195,1782162646000,-3000.0,0.0002109,2]
[426139193,1782162646000,-3000.0,0.0002108,2]
[426139191,1782162646000,-6917.43092233,0.0002107,2]
[426139216,1782162646000,-3000.0,0.0002115,2]
[426139211,1782162646000,-3000.0,0.0002112,2]
[426139215,1782162646000,-3000.0,0.0002114,2]
[426139221,1782162646000,-553.872121,0.0002116,2]
[426139225,1782162646000,-3000.0,0.0002118,2]
[426139218,1782162646000,-3000.0,0.0002116,2]
[426139249,1782162646000,-3000.0,0.0002126,2]
[426139247,1782162646000,-3000.0,0.0002125,2]
[426139242,1782162646000,-1000.0,0.00021239,2]
[426139240,1782162646000,-1005.0,0.00021239,2]
[426139234,1782162646000,-3000.0,0.0002123,2]
[426139236,1782162646000,-1005.0,0.00021239,2]
[426139244,1782162646000,-3000.0,0.0002124,2]
[426139230,1782162646000,-3000.0,0.0002121,2]
[426139228,1782162646000,-3000.0,0.000212,2]
[426139238,1782162646000,-1005.0,0.00021239,2]
[426139227,1782162646000,-3000.0,0.0002119,2]
[426139223,1782162646000,-3000.0,0.0002117,2]
[426139251,1782162646000,-768.08220513,0.0002127,2]
[426139232,1782162646000,-3000.0,0.0002122,2]
[426139675,1782162928000,170.0,0.00019143,120]
[426139676,1782162930000,170.0,0.000201,120]
[426139677,1782162931000,170.0,0.00021105,120]
[426139736,1782163832000,-300.0,0.00012237,2]
[426139733,1782163832000,-300.0,0.00012237,2]
[426139735,1782163832000,-300.0,0.00012237,2]
[426139730,1782163832000,-300.0,0.00012237,2]
[426139729,1782163832000,-300.0,0.00012237,2]
[426139725,1782163832000,-492.62057381,0.00011873,13]
[426139727,1782163832000,-300.0,0.00012236,2]
[426139740,1782163832000,-300.0,0.00012237,2]
[426139744,1782163832000,-300.0,0.00012237,2]
[426139742,1782163832000,-300.0,0.00012237,2]
[426139746,1782163832000,-71.18472204,0.00012237,2]
[426139749,1782163832000,-228.81527796,0.00012237,2]
[426139751,1782163832000,-263.80529585,0.00012237,2]
[426139738,1782163832000,-300.0,0.00012237,2]
[426140052,1782163838000,-500.0,0.00012899,2]
[426140057,1782163838000,-500.0,0.00012899,2]
[426140058,1782163838000,-500.0,0.00012899,2]
[426140055,1782163838000,-338.3651091,0.00012899,2]
[426140060,1782163838000,-500.0,0.00012899,2]
[426140059,1782163838000,-484.47348622,0.00012899,2]
[426140062,1782163838000,-500.0,0.00012899,2]
[426140071,1782163838000,-500.0,0.00012899,2]
[426140065,1782163838000,-500.0,0.00012899,2]
[426140064,1782163838000,-500.0,0.00012899,2]
[426140061,1782163838000,-498.40546094,0.00012899,2]
[426140069,1782163838000,-500.0,0.00012899,2]
[426140067,1782163838000,-500.0,0.00012899,2]
[426140066,1782163838000,-500.0,0.00012899,2]
[426140068,1782163838000,-500.0,0.00012899,2]
[426140072,1782163838000,-500.0,0.00012899,2]
[426140073,1782163838000,-500.0,0.00012899,2]
[426140074,1782163838000,-176.6351058,0.00012899,2]
[426140070,1782163838000,-500.0,0.00012899,2]
[426140053,1782163838000,-500.0,0.00012899,2]
[426140037,1782163838000,-300.0,0.00012237,2]
[426140056,1782163838000,-500.0,0.00012899,2]
[426140035,1782163838000,-300.0,0.00012237,2]
[426140034,1782163838000,-36.19470415,0.00012237,2]
[426140047,1782163838000,-155.70526643,0.00012899,2]
[426140036,1782163838000,-300.0,0.00012237,2]
[426140075,1782163838000,-500.0,0.00012899,2]
[426140039,1782163838000,-159.4920842,0.00012343,2]
[426140040,1782163838000,-11091.8326677,0.00012426,2]
[426140038,1782163838000,-300.0,0.00012237,2]
[426140051,1782163838000,-500.0,0.00012899,2]
[426140043,1782163838000,-5408.1624184,0.00012799,2]
[426140045,1782163838000,-469.04548295,0.00012899,2]
[426140044,1782163838000,-500.0,0.00012899,2]
[426140046,1782163838000,-500.0,0.00012899,2]
[426140042,1782163838000,-600.0,0.00012481,2]
[426140049,1782163838000,-500.0,0.00012899,2]
[426140048,1782163838000,-500.0,0.00012899,2]
[426140050,1782163838000,-500.0,0.00012899,2]
[426140054,1782163838000,-500.0,0.00012899,2]
[426140041,1782163838000,-728.0179227,0.00012473,2]
[426140077,1782163838000,-500.0,0.00012899,2]
[426140063,1782163838000,-500.0,0.00012899,2]
[426140078,1782163838000,-500.0,0.00012899,2]
[426140099,1782163838000,-500.0,0.00012899,2]
[426140108,1782163838000,-500.0,0.00012899,2]
[426140097,1782163838000,-500.0,0.00012899,2]
[426140096,1782163838000,-500.0,0.00012899,2]
[426140104,1782163838000,-500.0,0.00012899,2]
[426140098,1782163838000,-500.0,0.00012899,2]
[426140105,1782163838000,-500.0,0.00012899,2]
[426140100,1782163838000,-500.0,0.00012899,2]
[426140109,1782163838000,-500.0,0.00012899,2]
[426140113,1782163838000,-500.0,0.00012899,2]
[426140112,1782163838000,-500.0,0.00012899,2]
[426140110,1782163838000,-500.0,0.00012899,2]
[426140114,1782163838000,-500.0,0.00012899,2]
[426140118,1782163838000,-231.322208,0.00013699,2]
[426140119,1782163838000,-720.0,0.00013729,2]
[426140116,1782163838000,-153.03924263,0.00013233,14]
[426140115,1782163838000,-3630.1826661,0.000129,2]
[426140076,1782163838000,-500.0,0.00012899,2]
[426140117,1782163838000,-420.0,0.00013429,2]
[426140106,1782163838000,-500.0,0.00012899,2]
[426140103,1782163838000,-500.0,0.00012899,2]
[426140111,1782163838000,-500.0,0.00012899,2]
[426140102,1782163838000,-500.0,0.00012899,2]
[426140082,1782163838000,-500.0,0.00012899,2]
[426140107,1782163838000,-250.0,0.00012899,2]
[426140080,1782163838000,-500.0,0.00012899,2]
[426140081,1782163838000,-500.0,0.00012899,2]
[426140083,1782163838000,-500.0,0.00012899,2]
[426140079,1782163838000,-500.0,0.00012899,2]
[426140086,1782163838000,-500.0,0.00012899,2]
[426140087,1782163838000,-500.0,0.00012899,2]
[426140092,1782163838000,-500.0,0.00012899,2]
[426140084,1782163838000,-500.0,0.00012899,2]
[426140085,1782163838000,-500.0,0.00012899,2]
[426140089,1782163838000,-500.0,0.00012899,2]
[426140093,1782163838000,-500.0,0.00012899,2]
[426140088,1782163838000,-500.0,0.00012899,2]
[426140095,1782163838000,-500.0,0.00012899,2]
[426140091,1782163838000,-500.0,0.00012899,2]
[426140101,1782163838000,-222.04505121,0.00012899,2]
[426140090,1782163838000,-500.0,0.00012899,2]
[426140094,1782163838000,-500.0,0.00012899,2]
[426140161,1782163839000,-500.0,0.00016438,2]
[426140160,1782163839000,-412.18,0.00016438,2]
[426140158,1782163839000,-505.0,0.00016438,2]
[426140151,1782163839000,-500.0,0.00016437,2]
[426140154,1782163839000,-500.0,0.00016438,2]
[426140150,1782163839000,-500.0,0.00016437,2]
[426140155,1782163839000,-500.0,0.00016438,2]
[426140152,1782163839000,-500.0,0.00016437,2]
[426140149,1782163839000,-500.0,0.00016437,2]
[426140148,1782163839000,-500.0,0.00016437,2]
[426140153,1782163839000,-500.19,0.00016438,2]
[426140162,1782163839000,-500.0,0.00016438,2]
[426140173,1782163839000,-500.0,0.00016712,2]
[426140170,1782163839000,-5408.16241835,0.00016671,2]
[426140167,1782163839000,-500.0,0.00016438,2]
[426140165,1782163839000,-500.0,0.00016438,2]
[426140171,1782163839000,-535.31,0.00016712,2]
[426140163,1782163839000,-500.0,0.00016438,2]
[426140164,1782163839000,-500.0,0.00016438,2]
[426140169,1782163839000,-1000.0,0.00016612,2]
[426140183,1782163839000,-500.0,0.00017195,2]
[426140184,1782163839000,-500.0,0.00017195,2]
[426140186,1782163839000,-500.0,0.00017195,2]
[426140175,1782163839000,-535.31,0.00016986,2]
[426140147,1782163839000,-500.0,0.00016437,2]
[426140185,1782163839000,-500.0,0.00017195,2]
[426140159,1782163839000,-500.0,0.00016438,2]
[426140145,1782163839000,-200.0,0.00016437,2]
[426140128,1782163839000,-476.49003407,0.00016437,2]
[426140146,1782163839000,-500.0,0.00016437,2]
[426140178,1782163839000,-886.09330481,0.00017097,2]
[426140120,1782163839000,-533.72006221,0.00013763,2]
[426140132,1782163839000,-500.0,0.00016437,2]
[426140121,1782163839000,-500.0,0.00014054,2]
[426140122,1782163839000,-9069.2349697,0.00014056,2]
[426140124,1782163839000,-177.705034,0.00015068,2]
[426140125,1782163839000,-864.0,0.00015102,2]
[426140123,1782163839000,-181.637925,0.00014373,2]
[426140126,1782163839000,-181.637925,0.00015885,2]
[426140127,1782163839000,-1315.84973862,0.00016342,2]
[426140129,1782163839000,-500.0,0.00016437,2]
[426140131,1782163839000,-500.0,0.00016437,2]
[426140157,1782163839000,-500.0,0.00016438,2]
[426140130,1782163839000,-500.0,0.00016437,2]
[426140133,1782163839000,-617.38823468,0.00016437,2]
[426140142,1782163839000,-500.0,0.00016437,2]
[426140144,1782163839000,-500.0,0.00016437,2]
[426140135,1782163839000,-500.0,0.00016437,2]
[426140136,1782163839000,-500.0,0.00016437,2]
[426140140,1782163839000,-500.0,0.00016437,2]
[426140137,1782163839000,-500.0,0.00016437,2]
[426140143,1782163839000,-500.0,0.00016437,2]
[426140138,1782163839000,-500.0,0.00016437,2]
[426140139,1782163839000,-500.0,0.00016437,2]
[426140141,1782163839000,-500.0,0.00016437,2]
[426140156,1782163839000,-535.31,0.00016438,2]
[426140134,1782163839000,-500.0,0.00016437,2]
[426140180,1782163839000,-500.0,0.00017195,2]
[426140246,1782163839000,-501.11986973,0.00020273,2]
[426140177,1782163839000,-500.0,0.00016986,2]
[426140217,1782163839000,-166.7982442,0.00019238,2]
[426140227,1782163839000,-535.31,0.00019452,2]
[426140229,1782163839000,-500.0,0.00019452,2]
[426140219,1782163839000,-162.380719,0.00019238,2]
[426140223,1782163839000,-438.88857725,0.00019421,2]
[426140232,1782163839000,-168.3888056,0.00019786,2]
[426140225,1782163839000,-375.95529754,0.00019421,2]
[426140230,1782163839000,-535.31,0.00019726,2]
[426140233,1782163839000,-1000.0,0.00019797,2]
[426140234,1782163839000,-1000.0,0.00019797,2]
[426140236,1782163839000,-193.45517159,0.00019939,2]
[426140235,1782163839000,-1000.0,0.00019797,2]
[426140231,1782163839000,-500.0,0.00019726,2]
[426140181,1782163839000,-500.0,0.00017195,2]
[426140245,1782163839000,-535.31,0.00020273,2]
[426140241,1782163839000,-535.31,0.0002,2]
[426140239,1782163839000,-563.93294632,0.00019939,2]
[426140242,1782163839000,-500.0,0.0002,2]
[426140237,1782163839000,-658.33286587,0.00019939,2]
[426140248,1782163839000,-177.81326832,0.00020284,2]
[426140247,1782163839000,-386.91034319,0.00020284,2]
[426140249,1782163839000,-176.95866875,0.00020284,2]
[426140250,1782163839000,-159.53449117,0.00020284,2]
[426140252,1782163839000,-293.48317611,0.00020284,2]
[426140251,1782163839000,-179.47407302,0.00020284,2]
[426140253,1782163839000,-315.54147405,0.00020284,2]
[426140243,1782163839000,-1000.0,0.000201,2]
[426140221,1782163839000,-168.23681964,0.00019238,2]
[426140244,1782163839000,-492.0,0.000201,2]
[426140215,1782163839000,-500.0,0.00019178,2]
[426140213,1782163839000,-535.31,0.00019178,2]
[426140182,1782163839000,-500.0,0.00017195,2]
[426140179,1782163839000,-500.0,0.00017195,2]
[426140187,1782163839000,-535.31,0.0001726,2]
[426140191,1782163839000,-500.0,0.00017469,2]
[426140190,1782163839000,-500.0,0.00017469,2]
[426140189,1782163839000,-181.637925,0.00017398,2]
[426140188,1782163839000,-500.0,0.0001726,2]
[426140196,1782163839000,-535.31,0.00017808,2]
[426140195,1782163839000,-500.0,0.00017743,2]
[426140194,1782163839000,-500.0,0.00017534,2]
[426140198,1782163839000,-172.74948522,0.00018045,2]
[426140192,1782163839000,-172.74948523,0.00017504,2]
[426140193,1782163839000,-535.31,0.00017534,2]
[426140200,1782163839000,-500.0,0.00018082,2]
[426140212,1782163839000,-500.0,0.00018904,2]
[426140197,1782163839000,-500.0,0.00017808,2]
[426140208,1782163839000,-187.97764877,0.00018644,2]
[426140205,1782163839000,-535.31,0.0001863,2]
[426140199,1782163839000,-535.31,0.00018082,2]
[426140206,1782163839000,-500.0,0.0001863,2]
[426140201,1782163839000,-1000.0,0.00018273,2]
[426140210,1782163839000,-535.31,0.00018904,2]
[426140203,1782163839000,-535.31,0.00018356,2]
[426140202,1782163839000,-244.0,0.00018273,2]
[426140209,1782163839000,-172.656,0.00018864,2]
[426140204,1782163839000,-500.0,0.00018356,2]
[426140207,1782163839000,-219.44428862,0.00018644,2]
[426140278,1782163840000,-300.0,0.00020483,2]
[426140277,1782163840000,-335.66083912,0.00020419,5]
[426140275,1782163840000,-160.0,0.0002039,2]
[426140271,1782163840000,-161.34875191,0.00020284,2]
[426140274,1782163840000,-160.0,0.0002039,2]
[426140273,1782163840000,-417.15472785,0.0002039,2]
[426140293,1782163840000,-160.0,0.00020834,2]
[426140269,1782163840000,-151.49389563,0.00020284,2]
[426140280,1782163840000,-445.0,0.0002054,2]
[426140291,1782163840000,-535.31,0.00020821,2]
[426140295,1782163840000,-3105.328691,0.00020834,2]
[426140272,1782163840000,-168.94985978,0.00020284,2]
[426140276,1782163840000,-1871.79329761,0.000204,2]
[426140270,1782163840000,-343.99589973,0.00020284,2]
[426140254,1782163840000,-185.77746358,0.00020284,2]
[426140262,1782163840000,-171.57042562,0.00020284,2]
[426140257,1782163840000,-150.03506724,0.00020284,2]
[426140265,1782163840000,-177.85043188,0.00020284,2]
[426140264,1782163840000,-186.47837653,0.00020284,2]
[426140263,1782163840000,-751.91059509,0.00020284,2]
[426140260,1782163840000,-153.65665752,0.00020284,2]
[426140261,1782163840000,-877.77715449,0.00020284,2]
[426140267,1782163840000,-187.67199743,0.00020284,2]
[426140256,1782163840000,-180.39684421,0.00020284,2]
[426140258,1782163840000,-203.96090415,0.00020284,2]
[426140266,1782163840000,-153.63840429,0.00020284,2]
[426140259,1782163840000,-158.7276815,0.00020284,2]
[426140279,1782163840000,-186.0,0.0002054,2]
[426140268,1782163840000,-163.32634665,0.00020284,2]
[426140283,1782163840000,-5408.16241835,0.00020542,2]
[426140300,1782163840000,-359.31812415,0.00020894,2]
[426140287,1782163840000,-1871.79329761,0.000206,2]
[426140282,1782163840000,-1418.0,0.0002054,2]
[426140344,1782163840000,-326.05695513,0.0002134,2]
[426140342,1782163840000,-673.94304487,0.0002134,2]
[426140333,1782163840000,-160.6024915,0.0002134,2]
[426140331,1782163840000,-3000.0,0.0002133,2]
[426140329,1782163840000,-3000.0,0.0002132,2]
[426140321,1782163840000,-3000.0,0.0002128,2]
[426140323,1782163840000,-3000.0,0.0002129,2]
[426140325,1782163840000,-3000.0,0.000213,2]
[426140319,1782163840000,-156.12757092,0.0002127,2]
[426140317,1782163840000,-2231.91779487,0.0002127,2]
[426140313,1782163840000,-535.31,0.00021095,2]
[426140315,1782163840000,-1871.79329761,0.000212,2]
[426140311,1782163840000,-9390.639995,0.00021008,2]
[426140327,1782163840000,-3000.0,0.0002131,2]
[426140310,1782163840000,-4775.319997,0.00021008,2]
[426140289,1782163840000,-1871.79329761,0.000208,2]
[426140302,1782163840000,-410.64928474,0.00020894,2]
[426140298,1782163840000,-195.53921488,0.00020894,2]
[426140336,1782163840000,-669.56444,0.0002134,2]
[426140285,1782163840000,-535.31,0.00020547,2]
[426140303,1782163840000,-410.82141103,0.00020894,2]
[426140306,1782163840000,-797.0,0.000209,2]
[426140297,1782163840000,-6050.657383,0.00020834,2]
[426140305,1782163840000,-784.44678915,0.00020894,2]
[426140308,1782163840000,-1871.79329761,0.00021,2]
[426140307,1782163840000,-206.87407828,0.000209,2]
[426140309,1782163840000,-160.0,0.00021008,2]
[426140304,1782163840000,-739.47853986,0.00020894,2]
[426140312,1782163840000,-1499.6599242,0.00021028,2]
[426140928,1782163846000,-2866.1954255,0.0002134,2]
[426140929,1782163846000,-535.31,0.00021369,2]
[426140930,1782163846000,-1055.68882489,0.000214,2]
[426141012,1782163910000,-500.0,0.00016438,2]
[426141013,1782163927000,-500.0,0.00016712,2]
[426141116,1782164957000,2000.0,0.00022603,120]
[426141166,1782165040000,-175.72645602,0.00018626,2]
[426141146,1782165040000,-169.2312883,0.00011993,7]
[426141147,1782165040000,-169.2312883,0.00012233,7]
[426141149,1782165040000,-169.2312883,0.00012952,7]
[426141148,1782165040000,-169.2312883,0.00012593,7]
[426141151,1782165040000,-250.0,0.00015847,2]
[426141162,1782165040000,-181.637927,0.00018616,2]
[426141157,1782165040000,-211.10655488,0.00016886,2]
[426141152,1782165040000,-220.8488014,0.00016616,2]
[426141155,1782165040000,-181.706844,0.00016671,2]
[426141158,1782165040000,-570.87990805,0.00016886,2]
[426141160,1782165040000,-5644.0208659,0.00016922,2]
[426141164,1782165040000,-300.0,0.00018625,2]
[426141170,1782165040000,-164.44285439,0.00018626,2]
[426141150,1782165040000,-169.23128833,0.00013432,7]
[426141183,1782165040000,-351.45291204,0.00019402,2]
[426141168,1782165040000,-177.93405305,0.00018626,2]
[426141198,1782165040000,-169.49956264,0.00019402,2]
[426141196,1782165040000,-106.86043736,0.00019402,2]
[426141191,1782165040000,-150.41279475,0.00019402,2]
[426141189,1782165040000,-155.37676378,0.00019402,2]
[426141173,1782165040000,-186.05472733,0.00018626,2]
[426141181,1782165040000,-180.20878631,0.00019402,2]
[426141193,1782165040000,-58.88884882,0.00019402,2]
[426141175,1782165040000,-173.04835275,0.00018626,2]
[426141177,1782165040000,-1030.3030303,0.00018638,2]
[426141179,1782165040000,-1321.51898306,0.00018638,2]
[426141171,1782165040000,-202.83249142,0.00018626,2]
[426141187,1782165040000,-172.23603459,0.00019402,2]
[426141185,1782165040000,-191.04338022,0.00019402,2]
[426141307,1782165041000,-500.0,0.00019919,2]
[426141305,1782165041000,-214.638,0.00019919,2]
[426141313,1782165041000,-360.41757262,0.0001992,2]
[426141317,1782165041000,-382.08676044,0.0001992,2]
[426141315,1782165041000,-527.17936806,0.0001992,2]
[426141299,1782165041000,-500.0,0.00019688,2]
[426141303,1782165041000,-3380.10151153,0.0001982,2]
[426141301,1782165041000,-1000.0,0.00019797,2]
[426141311,1782165041000,-180.87500273,0.0001992,2]
[426141319,1782165041000,-344.47206918,0.0001992,2]
[426141309,1782165041000,-500.0,0.00019919,2]
[426141335,1782165041000,-322.61377986,0.0001992,2]
[426141323,1782165041000,-300.8255895,0.0001992,2]
[426141327,1782165041000,-493.32856318,0.0001992,2]